[Event "IIFL Wealth 4th Mumbai GM"]
[Site "Mumbai"]
[Date "2019.01.04"]
[Round "6"]
[White "abzid, Rahman"]
[Black "Mahalakshmi D M"]
[Result "1/2-1/2"]
[ECO "E21"]
[WhiteElo "2040"]
[BlackElo "1145"]
[Annotator "NA"]
[PlyCount "106"]
[EventDate "2018.12.30"]
[EventType "swiss"]
[EventCountry "IND"]
[SourceTitle "playchess.com"]
[Source "ChessBase"]
[SourceQuality "1"]
[TimeControl "40/5400+30:1800+30"]

1. d4 {[%emt 0:00:00]} Nf6 {[%emt 0:00:00]} 2. Nf3 {[%emt 0:00:00]} e6 {[%emt 0:00:00]} 3. c4 {[%emt 0:00:06]} Bb4+ {[%emt 0:00:00]} 4. Nc3 {[%emt 0:00:51]} O-O {[%emt 0:03:06]} 5. Bg5 {[%emt 0:00:17]} d5 {[%emt 0:00:29]} 6. Qc2 {[%emt 0:00:46]} Nbd7 {[%emt 0:02:38]} 7. c5 {[%emt 0:02:29]} c6 {[%emt 0:01:13]} 8. Ne5 {[%emt 0:04:08]} Qe8 {[%emt 0:04:16]} 9. Bxf6 {[%emt 0:02:02]} Nxf6 {[%emt 0:00:47]} 10. a3 {[%emt 0:02:53]} Ba5 {[%emt 0:01:19]} 11. b4 {[%emt 0:00:19]} Bc7 {[%emt 0:00:08]} 12. f4 {[%emt 0:00:07]} Nd7 {[%emt 0:03:28]} 13. e3 {[%emt 0:00:37]} Nxe5 {[%emt 0:07:50]} 14. dxe5 {[%emt 0:01:22]} f6 {[%emt 0:01:32]} 15. exf6 {[%emt 0:00:32]} Rxf6 {[%emt 0:01:22]} 16. Bd3 {[%emt 0:00:07]} Qh5 {[%emt 0:02:39]} 17. O-O {[%emt 0:00:19]} Bd7 {[%emt 0:01:43]} 18. g3 {[%emt 0:00:57]} e5 {[%emt 0:03:39]} 19. Rae1 {[%emt 0:04:02]} Re8 {[%emt 0:05:08]} 20. fxe5 {[%emt 0:04:32]} Bxe5 {[%emt 0:02:11]} 21. Ne2 {[%emt 0:04:52]} Bh3 {[%emt 0:09:22]} 22. Rxf6 {[%emt 0:00:54]} gxf6 {[%emt 0:00:42]} 23. Kf2 {[%emt 0:00:48]} Bg4 {[%emt 0:07:19]} 24. h4 {[%emt 0:01:34]} f5 {[%emt 0:03:53]} 25. Nf4 {[%emt 0:04:14]} Qf7 {[%emt 0:00:39]} 26. Be2 {[%emt 0:06:15]} Bc7 {[%emt 0:08:30]} 27. Bxg4 {[%emt 0:01:53]} fxg4 {[%emt 0:00:04]} 28. Qd1 {[%emt 0:01:03]} Qf5 {[%emt 0:01:07]} 29. Qd3 {[%emt 0:00:57]} Re4 {[%emt 0:03:52]} 30. Qd2 {[%emt 0:00:02]} a6 {[%emt 0:08:52]} 31. Kg1 {[%emt 0:00:56]} Rc4 {[%emt 0:05:34]} 32. Rc1 {[%emt 0:06:21]} Rxc1+ {[%emt 0:02:25]} 33. Qxc1 {[%emt 0:00:02]} Qe4 {[%emt 0:02:42]} 34. Qd2 {[%emt 0:02:40]} Bxf4 {[%emt 0:01:46]} 35. exf4 {[%emt 0:01:07]} Qf3 {[%emt 0:04:12]} 36. Kh2 {[%emt 0:00:18]} Qe4 {[%emt 0:01:14]} 37. Qd1 {[%emt 0:01:15]} h5 {[%emt 0:00:35]} 38. Qh1 {[%emt 0:01:19]} Qe3 {[%emt 0:01:10]} 39. Qb1 {[%emt 0:00:49]} Qf2+ {[%emt 0:01:24]} 40. Kh1 {[%emt 0:00:00]} Qf3+ {[%emt 0:00:00]} 41. Kh2 {[%emt 0:00:05]} Qe2+ {[%emt 0:02:22]} 42. Kg1 {[%emt 0:00:58]} Qe6 {[%emt 0:01:27]} 43. Kf2 {[%emt 0:00:18]} Kg7 {[%emt 0:02:09]} 44. Qb2+ {[%emt 0:02:14]} Kf7 {[%emt 0:00:29]} 45. Qh8 {[%emt 0:00:35]} Qf5 {[%emt 0:00:13]} 46. Ke3 {[%emt 0:03:47]} Qe4+ {[%emt 0:02:31]} 47. Kd2 {[%emt 0:00:14]} Qg2+ {[%emt 0:02:48]} 48. Kc1 {[%emt 0:00:51]} Qf1+ {[%emt 0:00:58]} 49. Kb2 {[%emt 0:00:08]} Qe2+ {[%emt 0:00:25]} 50. Kb3 {[%emt 0:00:11]} Qd1+ {[%emt 0:01:31]} 51. Kb2 {[%emt 0:00:05]} Qd2+ {[%emt 0:03:06]} 52. Kb3 {[%emt 0:01:01]} Qd3+ {[%emt 0:00:05]} 53. Kb2 {[%emt 0:00:03]} Qe2+ {[%emt 0:01:45]} 1/2-1/2

[Event "IIFL Wealth 4th Mumbai GM"]
[Site "Mumbai"]
[Date "2019.01.04"]
[Round "6"]
[White "Thapa, Krishna"]
[Black "Thrish Karthik"]
[Result "1/2-1/2"]
[ECO "D02"]
[WhiteElo "2024"]
[BlackElo "2168"]
[Annotator "NA"]
[PlyCount "138"]
[EventDate "2018.12.30"]
[EventType "swiss"]
[EventCountry "IND"]
[SourceTitle "playchess.com"]
[Source "ChessBase"]
[SourceQuality "1"]
[TimeControl "40/5400+30:1800+30"]

1. d4 {[%emt 0:02:07]} d5 {[%emt 0:00:00]} 2. Nf3 {[%emt 0:00:01]} Nf6 {[%emt 0:00:00]} 3. g3 {[%emt 0:00:03]} Bf5 {[%emt 0:00:00]} 4. Bg2 {[%emt 0:00:11]} e6 {[%emt 0:00:29]} 5. O-O {[%emt 0:00:11]} c6 {[%emt 0:01:12]} 6. c4 {[%emt 0:00:04]} Nbd7 {[%emt 0:02:30]} 7. b3 {[%emt 0:04:08]} Bd6 {[%emt 0:02:14]} 8. Bb2 {[%emt 0:00:11]} O-O {[%emt 0:02:24]} 9. Nbd2 {[%emt 0:00:21]} Qc7 {[%emt 0:06:16]} 10. Rc1 {[%emt 0:00:32]} h6 {[%emt 0:05:16]} 11. Nb1 {[%emt 0:01:43]} Ne4 {[%emt 0:07:26]} 12. Nfd2 {[%emt 0:02:27]} Ndf6 {[%emt 0:08:44]} 13. Nf3 {[%emt 0:05:00]} Ng4 {[%emt 0:12:03]} 14. Nc3 {[%emt 0:03:19]} Nxc3 {[%emt 0:02:58]} 15. Bxc3 {[%emt 0:03:58]} Ba3 {[%emt 0:02:25]} 16. Ra1 {[%emt 0:00:16]} b5 {[%emt 0:03:40]} 17. Qd2 {[%emt 0:14:25]} bxc4 {[%emt 0:09:14]} 18. bxc4 {[%emt 0:01:31]} Rab8 {[%emt 0:02:57]} 19. c5 {[%emt 0:02:50]} Rb5 {[%emt 0:01:09]} 20. Bh3 {[%emt 0:01:20]} Nf6 {[%emt 0:04:10]} 21. Bxf5 {[%emt 0:02:00]} exf5 {[%emt 0:00:01]} 22. Qd3 {[%emt 0:01:58]} Ne4 {[%emt 0:05:32]} 23. Rab1 {[%emt 0:03:19]} Rfb8 {[%emt 0:08:52]} 24. Rxb5 {[%emt 0:01:39]} Rxb5 {[%emt 0:00:38]} 25. Ba1 {[%emt 0:00:52]} Bb2 {[%emt 0:02:07]} 26. Bxb2 {[%emt 0:00:56]} Rxb2 {[%emt 0:00:48]} 27. Qa6 {[%emt 0:00:36]} Qb7 {[%emt 0:08:15]} 28. Qxb7 {[%emt 0:01:41]} Rxb7 {[%emt 0:00:01]} 29. Ne5 {[%emt 0:00:02]} Nc3 {[%emt 0:00:16]} 30. e3 {[%emt 0:01:00]} Rc7 {[%emt 0:00:19]} 31. Kg2 {[%emt 0:00:27]} f6 {[%emt 0:00:28]} 32. Nd3 {[%emt 0:01:02]} Rb7 {[%emt 0:01:15]} 33. Rc1 {[%emt 0:00:31]} Na4 {[%emt 0:02:13]} 34. Rc2 {[%emt 0:01:38]} Rb1 {[%emt 0:00:30]} 35. Kf3 {[%emt 0:00:47]} g5 {[%emt 0:00:32]} 36. Ke2 {[%emt 0:00:51]} Kf7 {[%emt 0:00:29]} 37. Kd2 {[%emt 0:00:36]} Ke7 {[%emt 0:00:31]} 38. a3 {[%emt 0:01:02]} Rb3 {[%emt 0:00:22]} 39. Ra2 {[%emt 0:01:29]} Kd7 {[%emt 0:00:35]} 40. f3 {[%emt 0:00:00]} Kc7 {[%emt 0:00:00]} 41. h3 {[%emt 0:04:17]} a5 {[%emt 0:07:46]} 42. g4 {[%emt 0:04:41]} Nc3 {[%emt 0:03:00]} 43. Nc1 {[%emt 0:05:21]} Rxa3 {[%emt 0:04:42]} 44. Rxa3 {[%emt 0:03:58]} Nb1+ {[%emt 0:00:01]} 45. Kd3 {[%emt 0:00:31]} Nxa3 {[%emt 0:00:04]} 46. gxf5 {[%emt 0:00:05]} Nc4 {[%emt 0:08:57]} 47. Na2 {[%emt 0:01:19]} Nb2+ {[%emt 0:03:24]} 48. Ke2 {[%emt 0:01:10]} Nc4 {[%emt 0:01:28]} 49. Nc3 {[%emt 0:01:10]} Na3 {[%emt 0:03:17]} 50. Na4 {[%emt 0:01:24]} Nc2 {[%emt 0:02:08]} 51. Kd2 {[%emt 0:01:04]} Na3 {[%emt 0:01:12]} 52. Kd3 {[%emt 0:00:38]} Nb5 {[%emt 0:00:30]} 53. e4 {[%emt 0:00:25]} dxe4+ {[%emt 0:00:33]} 54. fxe4 {[%emt 0:01:48]} h5 {[%emt 0:00:30]} 55. Ke3 {[%emt 0:00:08]} Kd7 {[%emt 0:00:30]} 56. Nb6+ {[%emt 0:02:07]} Kd8 {[%emt 0:00:21]} 57. d5 {[%emt 0:00:32]} cxd5 {[%emt 0:00:36]} 58. exd5 {[%emt 0:00:31]} Kc7 {[%emt 0:00:14]} 59. Na4 {[%emt 0:04:03]} Kd7 {[%emt 0:00:48]} 60. Ke4 {[%emt 0:00:20]} Kc7 {[%emt 0:00:30]} 61. Kd3 {[%emt 0:02:57]} g4 {[%emt 0:00:30]} 62. hxg4 {[%emt 0:00:36]} hxg4 {[%emt 0:00:10]} 63. Ke3 {[%emt 0:00:24]} g3 {[%emt 0:00:02]} 64. Kf3 {[%emt 0:01:59]} Nd4+ {[%emt 0:00:08]} 65. Kxg3 {[%emt 0:00:05]} Nxf5+ {[%emt 0:00:01]} 66. Kf4 {[%emt 0:00:16]} Nd4 {[%emt 0:00:35]} 67. Ke4 {[%emt 0:00:39]} Nb3 {[%emt 0:00:26]} 68. c6 {[%emt 0:11:06]} f5+ {[%emt 0:01:18]} 69. Ke5 {[%emt 0:01:20]} f4 {[%emt 0:00:34]} 1/2-1/2

[Event "IIFL Wealth 4th Mumbai GM"]
[Site "Mumbai"]
[Date "2019.01.04"]
[Round "6"]
[White "Chowdhury, Sohel"]
[Black "Regmi, Shikhar"]
[Result "1/2-1/2"]
[ECO "B24"]
[WhiteElo "2012"]
[BlackElo "1610"]
[Annotator "NA"]
[PlyCount "74"]
[EventDate "2018.12.30"]
[EventType "swiss"]
[EventCountry "IND"]
[SourceTitle "playchess.com"]
[Source "ChessBase"]
[SourceQuality "1"]
[TimeControl "40/5400+30:1800+30"]

1. e4 c5 2. Nc3 Nc6 3. g3 e6 4. Bg2 Nf6 5. d3 a6 6. f4 d6 7. Nf3 Be7 8. O-O O-O 9. h3 Re8 10. g4 Bf8 11. Ne2 d5 12. e5 Nd7 13. d4 cxd4 14. Nexd4 f6 15. exf6 Nxf6 16. c3 Ne4 17. Ne5 Nxe5 18. fxe5 Qh4 19. Qf3 Qe7 20. Bf4 Bd7 21. Rae1 g5 22. Bc1 Bg7 23. Rxe4 dxe4 24. Qxe4 Rab8 25. a3 Qc5 26. Re1 Bc6 27. Qe2 Bxg2 28. Kxg2 h6 29. Nf3 Rf8 30. Be3 Qc6 31. Bd4 Rf4 32. Kg3 Rbf8 33. Nd2 b5 34. Ne4 Qc7 35. Nd2 Qc6 36. Ne4 Bf6 37. exf6 Rf7 1/2-1/2

[Event "IIFL Wealth 4th Mumbai GM"]
[Site "Mumbai"]
[Date "2019.01.04"]
[Round "6"]
[White "Nepal, Prakash"]
[Black "Triton, Maxime"]
[Result "1-0"]
[ECO "A56"]
[WhiteElo "1902"]
[BlackElo "1937"]
[Annotator "NA"]
[PlyCount "79"]
[EventDate "2018.12.30"]
[EventType "swiss"]
[EventCountry "IND"]
[SourceTitle "playchess.com"]
[Source "ChessBase"]
[SourceQuality "1"]
[TimeControl "40/5400+30:1800+30"]

1. d4 {[%emt 0:00:24]} Nf6 2. c4 {[%emt 0:00:08]} c5 {[%emt 0:00:00]} 3. d5 {[%emt 0:00:08]} e5 {[%emt 0:00:00]} 4. Nc3 {[%emt 0:00:50]} d6 {[%emt 0:00:02]} 5. e4 {[%emt 0:00:25]} Be7 {[%emt 0:00:06]} 6. Be2 {[%emt 0:05:36]} Nbd7 {[%emt 0:00:06]} 7. f3 {[%emt 0:05:42]} Nf8 {[%emt 0:04:12]} 8. Be3 {[%emt 0:01:06]} Ng6 {[%emt 0:00:26]} 9. Qd2 {[%emt 0:00:06]} a6 {[%emt 0:06:41]} 10. g3 {[%emt 0:01:53]} Bd7 {[%emt 0:05:14]} 11. h4 {[%emt 0:23:42]} h5 {[%emt 0:21:26]} 12. Nh3 {[%emt 0:05:00]} Qa5 {[%emt 0:05:36]} 13. a4 {[%emt 0:11:40]} Bd8 {[%emt 0:17:14]} 14. Kf1 {[%emt 0:07:47]} Qb4 15. Nf2 {[%emt 0:01:46]} Qa5 {[%emt 0:08:47]} 16. Bg5 {[%emt 0:02:47]} Be7 {[%emt 0:07:45]} 17. Kg2 {[%emt 0:02:52]} Qd8 {[%emt 0:06:33]} 18. a5 {[%emt 0:02:42]} b6 {[%emt 0:03:26]} 19. axb6 {[%emt 0:02:28]} Qxb6 {[%emt 0:00:14]} 20. Ra2 {[%emt 0:01:30]} Rb8 {[%emt 0:03:41]} 21. Rha1 {[%emt 0:00:38]} Bc8 {[%emt 0:01:41]} 22. Nd3 {[%emt 0:02:00]} Nd7 {[%emt 0:02:02]} 23. Be3 {[%emt 0:06:41]} Qc7 {[%emt 0:01:12]} 24. Na4 {[%emt 0:01:04]} O-O {[%emt 0:01:43]} 25. b4 {[%emt 0:02:28]} f5 {[%emt 0:02:03]} 26. exf5 {[%emt 0:02:05]} Rxf5 {[%emt 0:00:21]} 27. bxc5 {[%emt 0:00:05]} Nxc5 {[%emt 0:00:21]} 28. Naxc5 {[%emt 0:00:14]} dxc5 {[%emt 0:00:11]} 29. Ra5 {[%emt 0:06:00]} Bxh4 {[%emt 0:02:41]} 30. gxh4 {[%emt 0:00:28]} Nxh4+ {[%emt 0:00:06]} 31. Kf2 {[%emt 0:00:29]} Nxf3 {[%emt 0:00:53]} 32. Bxf3 {[%emt 0:00:13]} Qf7 {[%emt 0:00:39]} 33. Ne1 {[%emt 0:04:17]} Rxf3+ {[%emt 0:00:26]} 34. Nxf3 {[%emt 0:00:11]} e4 {[%emt 0:00:40]} 35. Bf4 {[%emt 0:00:14]} Rb3 {[%emt 0:00:24]} 36. R5a3 {[%emt 0:01:20]} Rxf3+ {[%emt 0:00:34]} 37. Rxf3 {[%emt 0:00:03]} exf3 {[%emt 0:00:02]} 38. Rg1 {[%emt 0:00:33]} Qf6 {[%emt 0:00:43]} 39. Rg5 {[%emt 0:00:24]} Bg4 {[%emt 0:00:39]} 40. Be5 {[%emt 0:00:00]} 1-0

[Event "IIFL Wealth 4th Mumbai GM"]
[Site "Mumbai"]
[Date "2019.01.04"]
[Round "6"]
[White "Lama, Milan"]
[Black "Navalgund, Niranjan"]
[Result "0-1"]
[ECO "C55"]
[WhiteElo "1897"]
[BlackElo "2240"]
[Annotator "NA"]
[PlyCount "286"]
[EventDate "2018.12.30"]
[EventType "swiss"]
[EventCountry "IND"]
[SourceTitle "playchess.com"]
[Source "ChessBase"]
[SourceQuality "1"]
[TimeControl "40/5400+30:1800+30"]

1. e4 {[%emt 0:00:44]} e5 {[%emt 0:00:00]} 2. Nf3 {[%emt 0:00:22]} Nc6 {[%emt 0:00:00]} 3. Bc4 {[%emt 0:00:12]} Nf6 {[%emt 0:00:00]} 4. d3 {[%emt 0:00:12]} h6 {[%emt 0:00:00]} 5. O-O {[%emt 0:01:57]} d6 {[%emt 0:00:00]} 6. h3 {[%emt 0:01:13]} g5 {[%emt 0:00:55]} 7. Nh2 {[%emt 0:10:49]} Bg7 {[%emt 0:05:07]} 8. Nc3 {[%emt 0:01:46]} Na5 {[%emt 0:06:08]} 9. Bb3 {[%emt 0:00:21]} Nxb3 {[%emt 0:01:12]} 10. axb3 {[%emt 0:00:07]} c5 {[%emt 0:03:13]} 11. Be3 {[%emt 0:01:19]} Be6 {[%emt 0:00:10]} 12. Qd2 {[%emt 0:05:28]} Nh5 {[%emt 0:00:28]} 13. Ne2 {[%emt 0:01:57]} Nf4 {[%emt 0:00:34]} 14. b4 {[%emt 0:05:29]} b6 {[%emt 0:04:52]} 15. Bxf4 {[%emt 0:09:44]} gxf4 {[%emt 0:00:20]} 16. c4 {[%emt 0:03:07]} O-O {[%emt 0:09:00]} 17. b5 {[%emt 0:01:09]} Qg5 {[%emt 0:07:56]} 18. Kh1 {[%emt 0:01:01]} Qh5 {[%emt 0:01:32]} 19. Ng1 {[%emt 0:03:45]} f5 {[%emt 0:02:00]} 20. b3 {[%emt 0:01:30]} Bf6 {[%emt 0:06:56]} 21. f3 {[%emt 0:02:42]} Rf7 {[%emt 0:01:08]} 22. Qe2 {[%emt 0:03:23]} Rg7 {[%emt 0:00:42]} 23. Ra2 {[%emt 0:01:06]} Kh8 {[%emt 0:03:16]} 24. Rfa1 {[%emt 0:01:37]} Bh4 {[%emt 0:02:43]} 25. Ra6 {[%emt 0:02:57]} Bd8 {[%emt 0:10:00]} 26. R1a2 {[%emt 0:04:06]} Qg6 {[%emt 0:00:49]} 27. Ra1 {[%emt 0:00:59]} h5 {[%emt 0:00:25]} 28. R1a2 {[%emt 0:01:01]} Bc8 {[%emt 0:01:24]} 29. R6a3 {[%emt 0:00:11]} Bh4 {[%emt 0:02:27]} 30. Ra1 {[%emt 0:01:05]} Kh7 {[%emt 0:14:34]} 31. Nf1 {[%emt 0:01:41]} Kh6 {[%emt 0:03:08]} 32. R3a2 {[%emt 0:00:40]} Be6 {[%emt 0:00:38]} 33. Ra3 {[%emt 0:04:47]} Rag8 {[%emt 0:04:44]} 34. R1a2 {[%emt 0:03:30]} Qf7 {[%emt 0:01:08]} 35. Qd1 {[%emt 0:05:21]} Qd7 {[%emt 0:02:34]} 36. Qe2 {[%emt 0:04:19]} Ra8 {[%emt 0:04:48]} 37. Ra6 {[%emt 0:03:29]} Rf8 {[%emt 0:00:29]} 38. R6a3 {[%emt 0:00:39]} Rc8 {[%emt 0:00:52]} 39. Ra1 {[%emt 0:01:00]} Re8 {[%emt 0:00:18]} 40. Qc2 {[%emt 0:00:00]} Reg8 {[%emt 0:00:00]} 41. R3a2 {[%emt 0:07:23]} Rf8 {[%emt 0:08:36]} 42. Qe2 {[%emt 0:03:12]} Rf6 {[%emt 0:00:02]} 43. Qc2 {[%emt 0:04:26]} Rfg6 {[%emt 0:00:02]} 44. Qe2 {[%emt 0:00:34]} Qf7 {[%emt 0:00:01]} 45. Rb1 {[%emt 0:03:19]} Qg8 {[%emt 0:00:52]} 46. Rd1 {[%emt 0:00:49]} Qc8 {[%emt 0:01:00]} 47. Rb1 {[%emt 0:01:21]} Qa8 {[%emt 0:10:35]} 48. Rba1 {[%emt 0:05:44]} Bc8 {[%emt 0:00:22]} 49. Qc2 {[%emt 0:01:21]} Qb8 {[%emt 0:01:57]} 50. Qe2 {[%emt 0:01:36]} Qc7 {[%emt 0:00:04]} 51. Qc2 {[%emt 0:00:28]} Qd7 {[%emt 0:00:10]} 52. Qe2 {[%emt 0:00:23]} Bf6 {[%emt 0:00:02]} 53. Re1 {[%emt 0:04:16]} Re7 {[%emt 0:01:05]} 54. Qc2 {[%emt 0:00:58]} Qe8 {[%emt 0:00:54]} 55. Rea1 {[%emt 0:00:32]} Rgg7 {[%emt 0:00:32]} 56. Qe2 {[%emt 0:01:47]} Kh7 {[%emt 0:06:28]} 57. Qc2 {[%emt 0:04:19]} Kh8 {[%emt 0:00:52]} 58. Re1 {[%emt 0:00:32]} Ref7 {[%emt 0:01:24]} 59. Re2 {[%emt 0:02:01]} Bh4 {[%emt 0:00:22]} 60. Qd1 {[%emt 0:00:50]} Rf6 {[%emt 0:01:35]} 61. Ra1 {[%emt 0:00:30]} Rfg6 {[%emt 0:00:29]} 62. Rea2 {[%emt 0:00:10]} Be6 {[%emt 0:00:52]} 63. Qc2 {[%emt 0:00:14]} Qd7 {[%emt 0:00:03]} 64. Qe2 {[%emt 0:00:09]} Kh7 {[%emt 0:01:09]} 65. Qc2 {[%emt 0:00:25]} Bf6 {[%emt 0:00:04]} 66. Re1 {[%emt 0:01:28]} Kh6 {[%emt 0:00:33]} 67. Rd1 {[%emt 0:00:29]} Re7 {[%emt 0:00:20]} 68. Re1 {[%emt 0:00:40]} Qe8 {[%emt 0:00:20]} 69. Qb1 {[%emt 0:01:12]} Bc8 {[%emt 0:00:15]} 70. Qc2 {[%emt 0:00:08]} Rgg7 {[%emt 0:01:44]} 71. Qb1 {[%emt 0:00:22]} Bh4 {[%emt 0:00:01]} 72. Ree2 {[%emt 0:00:08]} Be6 {[%emt 0:01:31]} 73. Ra1 {[%emt 0:00:13]} Bf6 {[%emt 0:00:42]} 74. Raa2 {[%emt 0:00:02]} Qc8 {[%emt 0:00:49]} 75. Qe1 {[%emt 0:00:42]} Rg6 {[%emt 0:01:17]} 76. Rec2 {[%emt 0:00:12]} Reg7 {[%emt 0:00:36]} 77. Qe2 {[%emt 0:00:05]} fxe4 {[%emt 0:00:13]} 78. dxe4 {[%emt 0:00:09]} a5 {[%emt 0:01:20]} 79. bxa6 {[%emt 0:00:37]} Ra7 {[%emt 0:00:01]} 80. Ra3 {[%emt 0:01:08]} Rxa6 {[%emt 0:00:18]} 81. Rca2 {[%emt 0:00:23]} Rxa3 {[%emt 0:00:01]} 82. Rxa3 {[%emt 0:00:07]} Rg7 {[%emt 0:01:04]} 83. Qa2 {[%emt 0:00:09]} Qb7 {[%emt 0:00:34]} 84. Nd2 {[%emt 0:01:24]} Bh4 {[%emt 0:00:39]} 85. Nb1 {[%emt 0:01:04]} Be1 {[%emt 0:00:02]} 86. Qc2 {[%emt 0:01:34]} b5 {[%emt 0:00:37]} 87. Nd2 {[%emt 0:01:27]} b4 {[%emt 0:01:09]} 88. Ra2 {[%emt 0:00:22]} Bf2 {[%emt 0:00:12]} 89. Ra1 {[%emt 0:01:17]} Bd4 {[%emt 0:00:18]} 90. Rb1 {[%emt 0:00:23]} Qe7 {[%emt 0:00:34]} 91. Rd1 {[%emt 0:02:05]} Qg5 {[%emt 0:00:37]} 92. Nb1 {[%emt 0:00:19]} Rg6 {[%emt 0:00:40]} 93. Qa2 {[%emt 0:01:06]} Qh4 {[%emt 0:02:25]} 94. Qe2 {[%emt 0:00:47]} Qg3 {[%emt 0:00:50]} 95. Nd2 {[%emt 0:01:04]} Bxg1 {[%emt 0:00:17]} 96. Rxg1 {[%emt 0:00:09]} Bxh3 {[%emt 0:00:20]} 97. Nf1 {[%emt 0:00:29]} Qg5 {[%emt 0:00:06]} 98. Kh2 {[%emt 0:01:23]} Bc8 {[%emt 0:00:15]} 99. Qf2 {[%emt 0:00:10]} Rg7 {[%emt 0:00:28]} 100. Nd2 {[%emt 0:01:37]} Ra7 {[%emt 0:00:25]} 101. Nb1 {[%emt 0:00:13]} h4 {[%emt 0:00:22]} 102. Rd1 {[%emt 0:00:35]} Ra6 {[%emt 0:00:47]} 103. Rd2 {[%emt 0:00:09]} Kh5 {[%emt 0:01:27]} 104. Ra2 {[%emt 0:00:45]} Rxa2 {[%emt 0:00:41]} 105. Qxa2 {[%emt 0:00:08]} Qg3+ {[%emt 0:00:02]} 106. Kh1 {[%emt 0:01:23]} Qe1+ {[%emt 0:00:22]} 107. Kh2 {[%emt 0:00:04]} Qg3+ {[%emt 0:00:47]} 108. Kh1 {[%emt 0:00:07]} h3 {[%emt 0:00:31]} 109. Qe2 {[%emt 0:00:30]} Kh4 {[%emt 0:00:25]} 110. Nd2 {[%emt 0:00:49]} hxg2+ {[%emt 0:00:38]} 111. Qxg2 {[%emt 0:00:06]} Bh3 {[%emt 0:00:02]} 112. Qe2 {[%emt 0:00:11]} Kh5 {[%emt 0:00:17]} 113. Nf1 {[%emt 0:00:18]} Qh4 {[%emt 0:00:07]} 114. Nh2 {[%emt 0:00:15]} Qg5 {[%emt 0:00:17]} 115. Nf1 {[%emt 0:00:24]} Kg6 {[%emt 0:00:28]} 116. Nh2 {[%emt 0:00:28]} Kf6 {[%emt 0:00:16]} 117. Qf2 {[%emt 0:00:51]} Ke7 {[%emt 0:00:15]} 118. Qg1 {[%emt 0:00:41]} Qh6 {[%emt 0:01:38]} 119. Qg8 {[%emt 0:01:05]} Be6 {[%emt 0:00:11]} 120. Qg2 {[%emt 0:00:20]} Kd8 {[%emt 0:00:28]} 121. Qa2 {[%emt 0:00:27]} Qh4 {[%emt 0:00:30]} 122. Qe2 {[%emt 0:00:18]} Kc7 {[%emt 0:00:22]} 123. Qd2 {[%emt 0:00:59]} Bh3 {[%emt 0:00:39]} 124. Qe2 {[%emt 0:00:14]} Qg5 {[%emt 0:00:23]} 125. Qa2 {[%emt 0:00:20]} Kb6 {[%emt 0:00:47]} 126. Qd2 {[%emt 0:00:02]} Qg6 {[%emt 0:00:14]} 127. Qf2 {[%emt 0:00:10]} Qg8 {[%emt 0:00:39]} 128. Qd2 {[%emt 0:00:27]} Qg6 {[%emt 0:01:13]} 129. Qe2 {[%emt 0:00:10]} Qe8 {[%emt 0:00:42]} 130. Qd2 {[%emt 0:00:08]} Qb8 {[%emt 0:00:14]} 131. Ng4 {[%emt 0:01:02]} Qf8 {[%emt 0:00:52]} 132. Nh2 {[%emt 0:00:43]} Be6 {[%emt 0:00:23]} 133. Qd3 {[%emt 0:00:35]} Kc7 {[%emt 0:00:06]} 134. Qe2 {[%emt 0:00:13]} Qa8 {[%emt 0:00:01]} 135. Ng4 {[%emt 0:00:25]} Qa1+ {[%emt 0:00:18]} 136. Kg2 {[%emt 0:00:01]} Qb1 {[%emt 0:00:39]} 137. Nf6 {[%emt 0:02:12]} Qxb3 {[%emt 0:00:02]} 138. Nd5+ {[%emt 0:00:35]} Kb7 {[%emt 0:01:15]} 139. Kf1 {[%emt 0:00:54]} Qb1+ {[%emt 0:00:14]} 140. Kf2 {[%emt 0:00:58]} Qh1 {[%emt 0:00:15]} 141. Qd3 {[%emt 0:00:25]} Qa1 {[%emt 0:01:03]} 142. Ne7 {[%emt 0:00:48]} Qd4+ {[%emt 0:00:40]} 143. Ke2 {[%emt 0:00:29]} Bxc4 {[%emt 0:00:27]} 0-1

[Event "IIFL Wealth 4th Mumbai GM"]
[Site "Mumbai"]
[Date "2019.01.04"]
[Round "6"]
[White "Larmet, Nino"]
[Black "Dhungel, Uttam"]
[Result "1-0"]
[ECO "B24"]
[WhiteElo "1835"]
[BlackElo "1587"]
[Annotator "NA"]
[PlyCount "51"]
[EventDate "2018.12.30"]
[EventType "swiss"]
[EventCountry "IND"]
[SourceTitle "playchess.com"]
[Source "ChessBase"]
[SourceQuality "1"]
[TimeControl "40/5400+30:1800+30"]

1. e4 {[%emt 0:00:33]} c5 {[%emt 0:00:00]} 2. Nc3 {[%emt 0:00:04]} Nc6 {[%emt 0:00:17]} 3. g3 {[%emt 0:00:05]} e6 {[%emt 0:00:57]} 4. Bg2 {[%emt 0:00:03]} Nf6 {[%emt 0:00:08]} 5. Nge2 {[%emt 0:01:18]} d5 {[%emt 0:01:16]} 6. exd5 {[%emt 0:01:02]} exd5 {[%emt 0:00:20]} 7. d4 {[%emt 0:00:36]} Be6 {[%emt 0:02:18]} 8. O-O {[%emt 0:01:18]} Be7 {[%emt 0:00:28]} 9. Bg5 {[%emt 0:06:17]} O-O {[%emt 0:05:20]} 10. Bxf6 {[%emt 0:02:14]} Bxf6 {[%emt 0:01:13]} 11. dxc5 {[%emt 0:00:04]} Ne7 {[%emt 0:08:30]} 12. Nd4 {[%emt 0:02:03]} Bxd4 {[%emt 0:08:54]} 13. Qxd4 {[%emt 0:00:03]} Qc7 {[%emt 0:00:23]} 14. Nxd5 {[%emt 0:03:57]} Nxd5 {[%emt 0:01:27]} 15. Bxd5 {[%emt 0:00:40]} Rfd8 {[%emt 0:00:18]} 16. c4 {[%emt 0:00:01]} Rac8 {[%emt 0:02:51]} 17. b4 {[%emt 0:01:29]} Rd7 {[%emt 0:04:10]} 18. Qe4 {[%emt 0:03:04]} Re7 {[%emt 0:02:57]} 19. Bxe6 {[%emt 0:00:42]} Rxe6 {[%emt 0:00:15]} 20. Qc2 {[%emt 0:00:24]} Rce8 {[%emt 0:00:18]} 21. Rad1 {[%emt 0:01:01]} Re4 {[%emt 0:02:34]} 22. Rd2 {[%emt 0:07:27]} Qc6 {[%emt 0:01:40]} 23. Rd6 {[%emt 0:02:27]} Qc7 {[%emt 0:00:21]} 24. Rfd1 {[%emt 0:02:09]} b6 {[%emt 0:02:40]} 25. cxb6 {[%emt 0:06:57]} axb6 {[%emt 0:00:12]} 26. Qxe4 {[%emt 0:00:27]} 1-0

[Event "IIFL Wealth 4th Mumbai GM"]
[Site "Mumbai"]
[Date "2019.01.04"]
[Round "6"]
[White "Arya Nirag Shah"]
[Black "Ahsan, Ali Jewel"]
[Result "1-0"]
[ECO "A45"]
[WhiteElo "1812"]
[BlackElo "1363"]
[Annotator "NA"]
[PlyCount "57"]
[EventDate "2018.12.30"]
[EventType "swiss"]
[EventCountry "IND"]
[SourceTitle "playchess.com"]
[Source "ChessBase"]
[SourceQuality "1"]
[TimeControl "40/5400+30:1800+30"]

1. d4 {[%emt 0:00:00]} Nf6 {[%emt 0:00:00]} 2. Bg5 {[%emt 0:00:00]} e6 {[%emt 0:00:13]} 3. e4 {[%emt 0:00:00]} Be7 {[%emt 0:00:33]} 4. Nd2 {[%emt 0:00:06]} O-O {[%emt 0:01:06]} 5. Bd3 {[%emt 0:00:17]} d5 {[%emt 0:01:04]} 6. e5 {[%emt 0:00:22]} Nfd7 {[%emt 0:00:27]} 7. Bxe7 {[%emt 0:01:21]} Qxe7 {[%emt 0:00:16]} 8. f4 {[%emt 0:02:27]} Qb4 {[%emt 0:03:10]} 9. Ngf3 {[%emt 0:00:40]} f6 {[%emt 0:03:01]} 10. Rb1 {[%emt 0:04:23]} g6 {[%emt 0:02:58]} 11. h4 {[%emt 0:03:24]} Rf7 {[%emt 0:07:29]} 12. h5 {[%emt 0:00:30]} gxh5 {[%emt 0:03:56]} 13. Rxh5 {[%emt 0:02:14]} Nf8 {[%emt 0:02:03]} 14. Qe2 {[%emt 0:05:40]} Ng6 {[%emt 0:03:03]} 15. g3 {[%emt 0:15:16]} Nc6 {[%emt 0:03:27]} 16. c3 {[%emt 0:05:49]} Qe7 {[%emt 0:02:40]} 17. Qh2 {[%emt 0:00:31]} Rg7 {[%emt 0:02:23]} 18. exf6 {[%emt 0:03:38]} Qxf6 {[%emt 0:01:51]} 19. Ng5 {[%emt 0:00:15]} Qe7 {[%emt 0:06:44]} 20. Bxg6 {[%emt 0:01:40]} Qf6 {[%emt 0:18:17]} 21. Bxh7+ {[%emt 0:02:12]} Kf8 {[%emt 0:02:58]} 22. Bd3 {[%emt 0:01:04]} Ke7 {[%emt 0:01:53]} 23. Rh7 {[%emt 0:00:27]} Bd7 {[%emt 0:01:29]} 24. Rxg7+ {[%emt 0:00:40]} Qxg7 {[%emt 0:00:41]} 25. Qh7 {[%emt 0:00:04]} Qxh7 {[%emt 0:00:50]} 26. Nxh7 {[%emt 0:00:21]} Rg8 {[%emt 0:00:59]} 27. Kf2 {[%emt 0:00:06]} Kf7 {[%emt 0:01:21]} 28. Nf3 {[%emt 0:00:15]} Ne7 {[%emt 0:01:17]} 29. Ne5+ {[%emt 0:00:11]} 1-0